bitfinex/quotes_SOLUSD_20220227
["timestamp","ask_amount","ask_price","bid_price","bid_amount"]
[1645961154312,1.79708976,90.636,90.475,2.32923259]
[1645961154511,4.415,90.635,90.51,16.5699]
[1645961154712,4.54387897,90.636,90.511,2.51844828]
[1645961154912,4.54387897,90.636,90.495,2.7934664]
[1645961154913,148.77401428,90.633,90.495,2.7934664]
[1645961155112,16.5709,90.62,90.495,2.7934664]
[1645961155312,67.39279996,90.619,90.497,3.06703834]
[1645961155511,67.39279996,90.619,90.512,14.14854059]
[1645961155713,67.39279996,90.619,90.514,2.52769674]
[1645961155913,67.39279996,90.619,90.531,2.40736674]
[1645961156518,110.2,90.633,90.531,2.40736674]
[1645961156718,23.4426,90.649,90.532,26.19722301]
[1645961156915,23.4426,90.676,90.543,5.0]
[1645961157216,23.4426,90.676,90.544,0.25]
[1645961157415,23.4426,90.676,90.553,5.0]
[1645961157614,43.48385636,90.675,90.555,179.18829241]
[1645961157814,43.48385636,90.675,90.556,2.70688589]
[1645961158014,43.48385636,90.675,90.557,110.2]
[1645961158215,43.48385636,90.675,90.58,16.5535]
[1645961158615,43.48385636,90.675,90.581,21.58911387]
[1645961158815,43.48385636,90.675,90.581,18.47055373]
[1645961159019,48.5317,90.674,90.582,2.85098274]
[1645961160621,16.5599,90.67,90.582,2.85098274]
[1645961160923,1.50404825,90.668,90.484,2.70675979]
[1645961161124,4.415,90.667,90.467,2.55771318]
[1645961161323,1.77283185,90.665,90.467,2.55771318]
[1645961161523,1.77283185,90.665,90.473,5.0]
[1645961161727,1.77283185,90.665,90.483,5.0]
[1645961161922,40.54017579,90.639,90.502,2.94332061]
[1645961162123,46.7139,90.638,90.503,0.25]
[1645961162324,46.7139,90.638,90.504,110.2]
[1645961162522,46.7139,90.638,90.505,2.98015061]
[1645961163022,46.7139,90.638,90.541,110.2]
[1645961163221,46.7139,90.638,90.542,2.37600185]
[1645961163423,46.7139,90.638,90.542,2.74678921]
[1645961164025,46.7139,90.638,90.531,5.56842705]
[1645961164245,46.7139,90.638,90.532,5.4420751]
[1645961164644,46.7139,90.638,90.533,2.74678921]
[1645961165347,1.60102478,90.637,90.533,2.74678921]
[1645961165545,1.60102478,90.637,90.56,16.5595]
[1645961165746,46.7139,90.638,90.56,16.5595]
[1645961167546,1.57718564,90.637,90.56,16.5595]
[1645961168147,111.77718564,90.637,90.54,16.5639]
[1645961168351,110.2,90.637,90.463,5.0]
[1645961168550,1.44289214,90.636,90.521,2.74678921]
[1645961169349,46.7139,90.638,90.532,2.5546393]
[1645961169849,46.7139,90.638,90.534,110.2]
[1645961170049,46.7139,90.638,90.535,2.72838095]
[1645961170250,46.7139,90.638,90.56,16.5572]
[1645961170452,46.7139,90.638,90.561,113.2016215]
[1645961170651,46.7139,90.638,90.561,8.40168431]
[1645961170852,46.7139,90.638,90.561,8.12678921]
[1645961171054,46.7139,90.638,90.562,2.74678921]
[1645961171455,48.16977848,90.638,90.58,16.5567]
[1645961171854,48.16977848,90.638,90.562,2.74678921]
[1645961173555,1.5713377,90.637,90.545,2.74678921]
[1645961174262,111.7713377,90.637,90.545,2.74678921]
[1645961174457,1.61064258,90.636,90.545,2.74678921]
[1645961176461,16.5674,90.63,90.545,2.74678921]
[1645961176864,1.73080364,90.629,90.545,2.74678921]
[1645961178361,46.7139,90.638,90.545,2.74678921]
[1645961178560,1.8693507,90.637,90.545,2.74678921]
[1645961178762,1.85567512,90.636,90.545,2.74678921]
[1645961180367,46.7139,90.638,90.55,16.5627]
[1645961180561,46.7139,90.638,90.551,3.05048136]
[1645961180762,46.7139,90.638,90.551,5.06881719]
[1645961180964,46.7139,90.638,90.551,2.74678921]
[1645961181163,46.7139,90.638,90.553,3.09197815]
[1645961181561,40.54017579,90.639,90.554,2.74678921]
[1645961181762,40.54017579,90.639,90.57,16.5594]
[1645961181964,40.54017579,90.639,90.571,2.5655297]
[1645961182162,40.54017579,90.639,90.571,2.74678921]
[1645961183162,40.54017579,90.639,90.58,16.5563]
[1645961183563,40.54017579,90.639,90.581,2.74678921]
[1645961183965,24.759,90.653,90.581,2.74678921]
[1645961184169,24.759,90.653,90.59,16.5558]
[1645961184362,110.2,90.719,90.59,16.5558]
[1645961184569,46.1501,90.694,90.591,2.74678921]
[1645961184764,2.74678921,90.678,90.559,4.412]
[1645961184965,2.74678921,90.678,90.504,4.414]
[1645961185164,110.2,90.676,90.504,4.414]
[1645961185363,45.46684399,90.658,90.55,16.5623]
[1645961185564,156.5323,90.657,90.55,16.5623]
[1645961185763,1.70546333,90.656,90.55,16.5623]
[1645961187464,110.2,90.649,90.55,16.5623]
[1645961187666,1.64555071,90.648,90.55,16.5623]
[1645961188266,1.64555071,90.648,90.53,16.5663]
[1645961188466,110.2,90.646,90.521,24.4416]
[1645961188667,110.2,90.642,90.521,24.4416]
[1645961188867,110.2,90.64,90.521,24.4416]
[1645961189068,1.76713616,90.639,90.521,24.4416]
[1645961189268,4.415,90.638,90.521,24.4416]
[1645961189568,4.415,90.638,90.522,113.07974644]
[1645961189569,7.16178921,90.638,90.522,113.07974644]
[1645961189769,1.76713616,90.639,90.523,2.81880848]
[1645961189970,1.78388739,90.642,90.524,110.2]
[1645961190169,1.78388739,90.642,90.526,110.2]
[1645961190369,1.78388739,90.642,90.527,7.38749162]
[1645961190569,1.78388739,90.642,90.531,2.94283099]
[1645961191369,1.78388739,90.642,90.523,2.94143578]
[1645961191572,43.10789194,90.643,90.542,3.00222466]
[1645961191773,1.39545276,90.671,90.543,0.25]
[1645961191971,24.6274,90.674,90.544,110.2]
[1645961192170,1.39042256,90.705,90.546,110.2]
[1645961192373,4.414,90.716,90.573,2.31]
[1645961192571,1.50061768,90.739,90.573,2.31]
[1645961192572,47.5442,90.738,90.601,110.2]
[1645961192772,1.75023651,90.736,90.602,2.89731635]
[1645961192971,4.41,90.735,90.611,2.38105132]
[1645961193173,110.2,90.734,90.611,2.38105132]
[1645961193371,5.95228831,90.735,90.588,2.74678921]
[1645961193372,110.2,90.732,90.588,2.74678921]
[1645961193571,110.2,90.73,90.588,2.74678921]
[1645961193772,1.45911328,90.729,90.588,2.74678921]
[1645961194072,110.2,90.697,90.58,2.45961986]
[1645961194274,111.70294885,90.695,90.58,2.45961986]
[1645961194471,1.38824654,90.694,90.58,2.45961986]
[1645961194771,48.2464,90.696,90.581,2.74678921]
[1645961194977,48.2464,90.696,90.582,110.2]
[1645961195172,48.2464,90.696,90.585,2.68736982]
[1645961195373,48.2464,90.696,90.586,0.25]
[1645961195672,48.2464,90.696,90.587,4.413]
[1645961196072,48.2464,90.696,90.587,7.15978921]
[1645961196073,1.77603046,90.695,90.587,7.15978921]
[1645961196273,1.77603046,90.695,90.588,2.74678921]
[1645961196473,1.77603046,90.695,90.576,2.74678921]
[1645961196875,1.77603046,90.695,90.586,2.74678921]
[1645961197904,4.413,90.728,90.591,110.2]
[1645961198075,4.413,90.728,90.593,2.31]
[1645961198276,1.38815758,90.733,90.594,4.662]
[1645961198477,1.38815758,90.733,90.595,110.2]
[1645961198677,36.38604265,90.732,90.598,2.42573854]
[1645961198877,1.67488466,90.731,90.599,4.66]
[1645961199282,1.67488466,90.731,90.6,110.2]
[1645961199484,1.67488466,90.731,90.601,2.98090564]
[1645961199681,1.67488466,90.731,90.602,110.2]
[1645961199984,1.67488466,90.731,90.603,2.52507659]
[1645961200181,1.67488466,90.731,90.604,110.2]
[1645961200382,1.67488466,90.731,90.605,2.53182806]
[1645961200581,1.67488466,90.731,90.622,2.97841464]
[1645961200785,1.67488466,90.731,90.607,2.32275609]
[1645961201185,1.67488466,90.731,90.608,2.74678921]
[1645961201582,36.38604265,90.732,90.608,2.74678921]
[1645961201783,1.5725837,90.73,90.608,2.74678921]
[1645961202585,16.5488,90.73,90.63,16.5488]
[1645961202784,1.82713889,90.729,90.63,16.5488]
[1645961202986,1.82713889,90.729,90.631,2.74678921]
[1645961203788,1.82713889,90.729,90.64,16.5467]
[1645961204190,1.82713889,90.729,90.641,2.74678921]
[1645961204392,46.8505,90.738,90.641,115.39204205]
[1645961204592,46.8505,90.738,90.642,3.02359418]
[1645961204791,46.8505,90.738,90.642,2.74678921]
[1645961204992,1.50656605,90.737,90.642,2.74678921]
[1645961205194,41.38095715,90.736,90.643,2.74678921]
[1645961205409,1.50656605,90.737,90.613,5.05678921]
[1645961205611,1.78211102,90.771,90.633,2.31]
[1645961205810,1.78211102,90.771,90.635,113.16873662]
[1645961206009,1.78211102,90.771,90.636,2.53608898]
[1645961206209,1.28211102,90.771,90.651,113.29730302]
[1645961206408,36.48767543,90.77,90.652,2.98160185]
[1645961206608,35.98767543,90.77,90.652,2.98160185]
[1645961206809,1.5302111,90.769,90.652,2.74678921]
[1645961207209,111.7302111,90.769,90.652,2.74678921]
[1645961207412,1.5302111,90.769,90.652,2.74678921]
[1645961207812,1.5302111,90.769,90.68,16.5364]
[1645961208309,1.5302111,90.769,90.671,2.71243122]
[1645961208310,1.5302111,90.769,90.681,2.74678921]
[1645961208510,1.5302111,90.769,90.671,2.71243122]
[1645961209312,1.5302111,90.769,90.671,112.91243122]
[1645961209512,1.5302111,90.769,90.7,16.537]
[1645961210112,35.98767543,90.77,90.7,16.537]
[1645961210815,35.98767543,90.77,90.701,2.50605588]
[1645961211112,35.98767543,90.77,90.7,16.537]
[1645961211813,1.78692177,90.769,90.68,16.5395]
[1645961212214,35.98767543,90.77,90.681,110.2]
[1645961212415,35.98767543,90.77,90.682,2.62330239]
[1645961212614,35.98767543,90.77,90.681,2.74678921]
[1645961213015,35.98767543,90.77,90.667,3.07469591]
[1645961213417,35.98767543,90.77,90.668,2.74678921]
[1645961213616,35.98767543,90.77,90.672,2.6439772]
[1645961213617,0.25,90.769,90.672,2.6439772]
[1645961214217,0.25,90.769,90.657,2.74678921]
[1645961214218,2.11808186,90.769,90.657,2.74678921]
[1645961214418,2.11808186,90.769,90.637,2.94239496]
[1645961214618,4.409,90.768,90.636,48.78028921]
[1645961214820,110.2,90.767,90.637,2.88999945]
[1645961215018,4.41,90.766,90.637,2.88999945]
[1645961215218,110.2,90.759,90.64,16.5462]
[1645961215421,110.2,90.755,90.64,16.5462]
[1645961215619,4.41,90.754,90.64,16.5462]
[1645961215820,110.2,90.753,90.64,16.5462]
[1645961216020,1.64587299,90.75,90.64,16.5462]
[1645961216220,151.91329574,90.739,90.62,16.5499]
[1645961216430,4.41,90.738,90.607,2.74678921]
[1645961216622,1.55271776,90.736,90.577,2.74678921]
[1645961216820,4.41,90.735,90.577,2.74678921]
[1645961217021,1.55271776,90.736,90.577,2.74678921]
[1645961217221,117.35678921,90.735,90.595,24.70117564]
[1645961217421,1.50263875,90.734,90.596,2.51711128]
[1645961217622,4.24942796,90.734,90.585,110.2]
[1645961217925,4.24942796,90.734,90.601,110.2]
[1645961217926,16.5512,90.73,90.601,110.2]
[1645961218123,1.50263875,90.734,90.605,176.22]
[1645961218324,41.71329574,90.739,90.608,2.58952161]
[1645961218522,41.71329574,90.739,90.609,0.25]
[1645961218722,41.71329574,90.739,90.61,110.2]
[1645961218923,1.55723944,90.738,90.611,3.10094769]
[1645961219124,41.71329574,90.739,90.612,110.2]
[1645961219323,41.71329574,90.739,90.613,3.36958012]
[1645961219524,23.0501,90.738,90.64,16.5444]
[1645961219722,1.46247725,90.737,90.64,16.5444]
[1645961221023,4.20926646,90.737,90.64,16.5444]
[1645961221225,1.46247725,90.737,90.64,16.5444]
[1645961223823,0.25,90.736,90.64,16.5444]
[1645961224825,1.66891946,90.736,90.64,16.5444]
[1645961225026,1.59189427,90.728,90.64,16.5444]
[1645961225226,1.59189427,90.728,90.62,16.5499]
[1645961225426,1.59189427,90.728,90.599,4.41]
[1645961225627,110.2,90.726,90.599,4.41]
[1645961225830,43.26482269,90.724,90.607,3.08794442]
[1645961226026,16.5511,90.72,90.607,2.74678921]
[1645961226227,1.86339808,90.719,90.608,2.74678921]
[1645961226427,112.06339808,90.719,90.611,3.08338024]
[1645961226727,112.06339808,90.719,90.61,16.552]
[1645961226728,1.86339808,90.719,90.61,16.552]
[1645961227027,1.86339808,90.719,90.612,2.74678921]
[1645961228132,1.86339808,90.719,90.606,23.6331]
[1645961228329,1.86339808,90.719,90.607,3.11712888]
[1645961228529,0.25,90.718,90.63,16.5486]
[1645961230834,2.00068798,90.718,90.63,16.5486]
[1645961235636,1.75068798,90.718,90.63,16.5486]
[1645961236337,1.75068798,90.718,90.631,2.74678921]
[1645961236734,1.75068798,90.718,90.65,16.5451]
[1645961237034,1.75392656,90.723,90.65,16.5451]
[1645961237236,1.75392656,90.723,90.619,2.74678921]
[1645961238540,1.75392656,90.723,90.63,16.5483]
[1645961238936,43.26482269,90.724,90.63,16.5483]
[1645961239160,43.26482269,90.724,90.631,2.74678921]
[1645961239541,46.3615,90.725,90.65,16.5454]
[1645961239738,46.3615,90.725,90.651,2.59874681]
[1645961239938,46.3615,90.725,90.651,2.74678921]
[1645961240140,46.3615,90.725,90.652,2.74678921]
[1645961240538,36.49305086,90.724,90.652,2.74678921]
[1645961240738,36.49305086,90.724,90.67,16.5405]
[1645961241338,0.25,90.723,90.67,16.5405]
[1645961245045,0.25,90.723,90.652,2.74678921]
[1645961245247,1.8481149,90.723,90.65,16.5449]
[1645961245647,1.8481149,90.723,90.633,23.0488]
[1645961246447,1.8481149,90.723,90.64,16.5474]
[1645961248875,0.25,90.723,90.64,16.5474]
[1645961249273,0.25,90.723,90.66,16.5437]
[1645961250472,36.49305086,90.724,90.66,16.5437]
[1645961250672,24.932,90.744,90.67,16.5404]
[1645961250872,24.932,90.744,90.671,2.67670975]
[1645961251275,24.932,90.744,90.661,2.74678921]
[1645961251673,24.932,90.744,90.68,16.5396]
[1645961251875,24.932,90.744,90.681,2.31008814]
[1645961252075,24.932,90.744,90.681,2.74678921]
[1645961252474,24.932,90.744,90.666,2.74678921]
[1645961252876,24.682,90.744,90.666,2.74678921]
[1645961253477,24.682,90.744,90.69,16.5366]
[1645961254080,24.682,90.744,90.67,55.1231]
[1645961255281,24.682,90.744,90.66,16.5412]
[1645961255479,24.682,90.744,90.661,2.6689503]
[1645961255680,24.682,90.744,90.651,3.08948521]
[1645961256482,24.682,90.744,90.68,16.5399]
[1645961257282,1.84409074,90.743,90.651,3.08948521]
[1645961257483,112.04409074,90.743,90.651,3.08948521]
[1645961257682,110.2,90.743,90.66,16.5431]
[1645961257881,1.3719578,90.742,90.66,16.5431]
[1645961260887,24.682,90.744,90.661,3.07335496]
[1645961261288,24.682,90.744,90.68,16.5406]
[1645961261887,1.85026975,90.743,90.65,55.14]
[1645961262488,24.682,90.744,90.65,55.14]
[1645961262489,24.682,90.744,90.66,16.543]
[1645961262788,24.682,90.744,90.67,55.1229]
[1645961262986,24.682,90.744,90.671,2.60305945]
[1645961264588,24.682,90.744,90.681,2.40530525]
[1645961264990,24.682,90.744,90.671,16.9391]
[1645961265189,24.682,90.744,90.672,2.61398466]
[1645961265789,24.682,90.744,90.69,16.5374]
[1645961266389,36.38438496,90.745,90.69,16.5374]
[1645961269089,22.6354,90.757,90.691,2.42907766]
[1645961269289,22.6354,90.757,90.69,16.5374]
[1645961269991,34.08516151,90.756,90.69,16.5374]
[1645961270994,34.08516151,90.756,90.7,16.536]
[1645961272596,22.6354,90.757,90.7,16.536]
[1645961273496,34.81753908,90.756,90.7,16.536]
[1645961275497,183.4832,90.816,90.7,16.536]
[1645961275698,45.8506,90.799,90.701,2.48634188]
[1645961275898,45.8506,90.799,90.72,16.5315]
[1645961276600,39.48605799,90.798,90.721,2.45828555]
[1645961276799,39.48605799,90.798,90.702,2.74678921]
[1645961277202,39.48605799,90.798,90.695,14.36485048]
[1645961277403,1.49643234,90.797,90.696,3.03106945]
[1645961277602,1.49643234,90.797,90.73,16.5303]
[1645961278602,39.03593717,90.798,90.73,16.5303]
[1645961278802,39.03593717,90.798,90.731,2.98601794]
[1645961281407,110.2,90.797,90.731,2.98601794]
[1645961281608,39.03593717,90.798,90.731,2.98601794]
[1645961284307,2.74678921,90.797,90.71,55.0987]
[1645961284707,2.74678921,90.797,90.711,2.81823186]
[1645961285110,2.74678921,90.797,90.72,400.0]
[1645961285508,2.74678921,90.797,90.721,3.10406379]
[1645961285908,39.03593717,90.798,90.721,3.10406379]
[1645961286913,110.2,90.797,90.721,3.10406379]
[1645961287112,112.94678921,90.797,90.721,3.10406379]
[1645961287314,2.74678921,90.796,90.721,3.10406379]
[1645961287514,4.407,90.795,90.721,3.10406379]
[1645961287929,2.74678921,90.794,90.721,3.10406379]
[1645961288131,16.5382,90.79,90.721,3.10406379]
[1645961288530,2.74678921,90.789,90.721,3.10406379]
[1645961288932,39.03593717,90.798,90.721,3.10406379]
[1645961289131,2.74678921,90.797,90.721,3.10406379]
[1645961289738,39.03593717,90.798,90.721,3.10406379]
[1645961290136,39.03593717,90.798,90.722,2.74678921]
[1645961290433,39.03593717,90.798,90.723,2.97829286]
[1645961291534,39.03593717,90.798,90.731,2.83499045]
[1645961291933,39.03593717,90.798,90.724,24.69250898]
[1645961292133,39.03593717,90.798,90.725,2.62500935]
[1645961292333,39.03593717,90.798,90.726,3.06309446]
[1645961292633,39.03593717,90.798,90.727,3.04741564]
[1645961293233,39.03593717,90.798,90.74,16.5281]
[1645961293534,39.03593717,90.798,90.741,2.99308362]
[1645961296038,39.03593717,90.798,90.741,16.512]
[1645961296238,2.74678921,90.834,90.75,16.5263]
[1645961296437,75.0577,90.85,90.751,2.47280735]
[1645961296638,48.2187,90.845,90.742,49.58144898]
[1645961296839,48.2187,90.845,90.746,124.56485048]
[1645961297340,43.61502071,90.844,90.747,17.35286629]
[1645961297840,43.61502071,90.844,90.761,110.2]
[1645961298041,43.61502071,90.844,90.762,2.44161354]
[1645961298240,43.61502071,90.844,90.762,14.36485048]
[1645961298642,43.61502071,90.844,90.763,2.42284318]
[1645961298841,43.61502071,90.844,90.762,14.36485048]
[1645961299041,43.61502071,90.844,90.743,14.36485048]
[1645961299442,112.94678921,90.843,90.744,3.04997201]
[1645961299843,2.74678921,90.842,90.744,3.04997201]
[1645961300345,22.52800195,90.842,90.738,24.69224898]
[1645961300545,43.61502071,90.844,90.739,2.6980087]
[1645961300743,43.61502071,90.844,90.733,2.48194576]
[1645961300946,2.74678921,90.841,90.733,18.89974576]
[1645961301146,2.74678921,90.841,90.735,2.6459123]
[1645961301947,2.74678921,90.841,90.736,4.405]
[1645961302548,16.5289,90.84,90.74,16.5283]
[1645961302748,16.5289,90.84,90.741,2.34900734]
[1645961302947,43.61502071,90.844,90.741,2.34900734]
[1645961303349,2.74678921,90.839,90.741,2.34900734]
[1645961304248,112.94678921,90.839,90.735,3.03131586]
[1645961304650,2.74678921,90.838,90.735,3.03131586]
[1645961304950,4.29784626,90.838,90.735,3.03131586]
[1645961305249,2.74678921,90.837,90.735,3.03131586]
[1645961305450,110.2,90.829,90.723,2.33511681]
[1645961305652,35.72595173,90.828,90.723,2.33511681]
[1645961305851,1.6294571,90.826,90.723,2.33511681]
[1645961306050,110.2,90.825,90.723,2.33511681]
[1645961306251,4.406,90.824,90.723,2.33511681]
[1645961306951,2.74678921,90.823,90.723,2.33511681]
[1645961307151,4.406,90.822,90.723,2.33511681]
[1645961307352,2.74678921,90.823,90.723,2.33511681]
[1645961307552,110.2,90.819,90.723,2.33511681]
[1645961307959,2.74678921,90.818,90.723,2.33511681]
[1645961308157,4.25152532,90.818,90.723,2.33511681]
[1645961308355,4.406,90.817,90.723,2.33511681]
[1645961308553,110.2,90.816,90.723,2.33511681]
[1645961308755,110.2,90.809,90.723,2.33511681]
[1645961308953,110.2,90.807,90.723,2.33511681]
[1645961309155,79.49537902,90.808,90.723,2.33511681]
[1645961309355,79.49537902,90.808,90.723,27.02736579]
[1645961309556,79.49537902,90.808,90.724,2.40493746]
[1645961310157,112.94678921,90.807,90.724,2.40493746]
[1645961310556,2.74678921,90.806,90.724,2.40493746]
[1645961311358,79.49537902,90.808,90.724,2.40493746]
[1645961312158,79.49537902,90.808,90.725,24.69224898]
[1645961312358,110.2,90.807,90.726,2.75725956]
[1645961312558,79.49537902,90.808,90.726,2.75725956]
[1645961312757,79.49537902,90.808,90.72,416.5306]
[1645961312958,79.49537902,90.808,90.721,2.87066669]
[1645961314361,110.2,90.807,90.721,2.87066669]
[1645961314761,79.49537902,90.808,90.721,2.87066669]
[1645961316463,79.49537902,90.808,90.723,2.51967399]
[1645961316864,79.49537902,90.808,90.724,24.69224898]
[1645961317064,79.49537902,90.808,90.725,2.67473291]
[1645961317564,79.49537902,90.808,90.726,27.43903819]
[1645961317765,32.41907902,90.808,90.727,2.47762846]
[1645961317963,110.2,90.807,90.727,2.47762846]
[1645961318365,133.921,90.806,90.72,400.0]
[1645961318567,133.921,90.806,90.721,2.36365384]
[1645961318963,110.2,90.804,90.721,2.36365384]
[1645961319164,23.2422,90.805,90.721,2.36365384]
[1645961319165,110.2,90.799,90.721,2.36365384]
[1645961319368,110.2,90.799,90.72,400.0]
[1645961319569,4.36395865,90.798,90.72,400.0]
[1645961319970,110.2,90.796,90.72,400.0]
[1645961320172,36.40245519,90.794,90.72,400.0]
[1645961320373,38.86071972,90.779,90.72,400.0]
[1645961320872,38.86071972,90.779,90.721,2.39356956]
[1645961321073,23.5169,90.793,90.721,2.39356956]
[1645961321471,23.5169,90.793,90.722,51.24770365]
[1645961321691,23.5169,90.793,90.723,2.96661344]
[1645961321893,23.5169,90.793,90.723,51.46752788]
[1645961322094,23.5169,90.793,90.73,16.5299]
[1645961322292,23.5169,90.793,90.731,2.9778311]
[1645961322493,23.5169,90.793,90.731,51.47874554]
[1645961322694,23.5169,90.793,90.732,2.41261686]
[1645961322895,23.5169,90.793,90.732,26.22128232]
[1645961323094,23.5169,90.793,90.733,2.52392179]
[1645961323294,76.1494,90.861,90.733,51.02483623]
[1645961323496,45.23205046,90.85,90.734,203.2444633]
[1645961323697,48.7,90.858,90.735,2.80455198]
[1645961323898,48.7,90.858,90.736,110.45]
[1645961324196,48.7,90.858,90.737,2.90445088]
[1645961324397,48.7,90.858,90.738,110.45]
[1645961324596,45.60865592,90.857,90.738,0.25]
[1645961324796,45.60865592,90.857,90.76,55.0675]
[1645961325100,110.2,90.856,90.742,2.43129464]
[1645961325300,112.94678921,90.856,90.742,2.43129464]
[1645961325594,4.2960983,90.855,90.742,2.43129464]
[1645961325795,110.2,90.854,90.742,2.43129464]
[1645961325996,135.47479116,90.854,90.742,2.43129464]
[1645961326202,2.74678921,90.853,90.742,2.43129464]
[1645961326399,110.2,90.852,90.742,2.43129464]
[1645961326599,110.2,90.849,90.751,3.12411276]
[1645961326899,114.605,90.849,90.751,3.12411276]
[1645961327105,26.93627862,90.848,90.735,2.79570355]
[1645961327309,2.74678921,90.848,90.752,2.74678921]
[1645961327500,22.7157,90.847,90.752,2.74678921]
[1645961327700,22.7157,90.847,90.751,2.61534285]
[1645961327901,22.7157,90.847,90.737,2.28505632]
[1645961328501,110.2,90.846,90.737,2.28505632]
[1645961328708,110.2,90.846,90.738,26.78396257]
[1645961328902,110.2,90.846,90.739,2.8952172]
[1645961329301,4.405,90.845,90.739,2.8952172]
[1645961329503,16.5293,90.84,90.74,16.5284]
[1645961329702,39.86453962,90.839,90.741,2.63645531]
[1645961330002,39.86453962,90.839,90.741,112.83645531]
[1645961330202,39.86453962,90.839,90.743,110.2]
[1645961330401,39.86453962,90.839,90.744,3.11940141]
[1645961330601,39.86453962,90.839,90.745,110.2]
[1645961330802,39.86453962,90.839,90.746,2.67641422]
[1645961331002,39.86453962,90.839,90.75,16.5264]
[1645961331203,39.86453962,90.839,90.751,2.87796695]
[1645961331803,39.86453962,90.839,90.752,2.74678921]
[1645961332003,39.86453962,90.839,90.76,16.5245]
[1645961332203,24.7306,90.858,90.761,2.96991458]
[1645961332405,29.3613,90.909,90.762,2.53015619]
[1645961332603,49.1719,90.909,90.764,110.2]
[1645961332802,49.1719,90.909,90.765,2.65059209]
[1645961333003,49.1719,90.909,90.766,110.2]
[1645961333202,38.23328542,90.908,90.767,2.51092899]
[1645961333402,38.23328542,90.908,90.768,110.2]
[1645961333602,38.23328542,90.908,90.769,2.59638275]
[1645961333803,38.23328542,90.908,90.77,4.403]
[1645961334007,38.23328542,90.908,90.771,0.25]
[1645961334203,38.23328542,90.908,90.775,2.26609576]
[1645961334404,38.23328542,90.908,90.776,4.652]
[1645961334706,38.23328542,90.908,90.792,2.39401911]
[1645961334904,110.2,90.907,90.792,2.39401911]
[1645961335105,110.2,90.907,90.793,4.402]
[1645961335305,4.402,90.906,90.778,2.35724716]
[1645961335707,4.402,90.907,90.778,5.10403637]
[1645961335906,42.63528542,90.908,90.779,37.13414997]
[1645961336111,4.402,90.908,90.801,2.77688225]
[1645961336310,49.1719,90.909,90.802,4.402]
[1645961336613,49.1719,90.909,90.804,2.43181915]
[1645961336808,110.2,90.967,90.805,4.652]
[1645961337207,35.99325965,90.914,90.806,135.85664322]
[1645961337408,35.99325965,90.914,90.808,110.2]
[1645961337609,35.99325965,90.914,90.831,110.2]
[1645961337808,35.99325965,90.914,90.833,110.2]
[1645961338008,35.99325965,90.914,90.834,2.32425048]
[1645961338208,35.99325965,90.914,90.832,2.74678921]
[1645961338508,35.99325965,90.914,90.834,2.74678921]
[1645961338908,35.99325965,90.914,90.85,16.507]
[1645961339110,35.99325965,90.914,90.851,2.97439112]
[1645961339307,48.8201,90.945,90.851,2.97439112]
[1645961339308,48.8201,90.945,90.851,112.94678921]
[1645961339507,48.8201,90.945,90.852,2.68813052]
[1645961339709,48.8201,90.945,90.852,2.74678921]
[1645961339908,48.8201,90.945,90.853,2.74678921]
[1645961340312,45.43995996,90.944,90.861,2.7282755]
[1645961340511,45.43995996,90.944,90.835,4.4]
[1645961340714,45.43995996,90.944,90.835,2.74678921]
[1645961340911,45.43995996,90.944,90.836,2.74678921]
[1645961341315,45.43995996,90.944,90.85,16.508]
[1645961341721,45.43995996,90.944,90.851,5.7779377]
[1645961341914,45.43995996,90.944,90.851,2.74678921]
[1645961342412,45.43995996,90.944,90.852,2.74678921]
[1645961342614,45.43995996,90.944,90.833,2.74678921]
[1645961343414,45.43995996,90.944,90.834,4.4]
[1645961343613,45.43995996,90.944,90.841,2.98213056]
[1645961344413,45.43995996,90.944,90.842,2.74678921]
[1645961347117,110.2,90.939,90.842,2.74678921]
[1645961347318,110.2,90.939,90.841,2.98213056]
[1645961347519,45.43995996,90.944,90.842,2.74678921]
[1645961348717,45.43995996,90.944,90.831,2.51401049]
[1645961348718,110.2,90.939,90.84,16.5078]
[1645961348917,110.2,90.943,90.831,2.51401049]
[1645961349120,110.2,90.943,90.827,4.4]
[1645961349718,4.401,90.942,90.827,7.14678921]